fUST/lending_fUST_20251104
["ID","MTS","AMOUNT","RATE_DAILY","PERIOD"]
[393042961,1762241899151,-500.0,0.00043835,120]
[393042962,1762241899206,-500.0,0.00043835,120]
[393042963,1762241899261,-516.8809195,0.00043835,120]
[393042964,1762241899316,-500.0,0.00043835,120]
[393042965,1762241899372,-500.0,0.00043835,120]
[393042966,1762241899428,-500.0,0.00043835,120]
[393042967,1762241899482,-505.0927969,0.00043835,120]
[393042968,1762241899541,-500.0,0.00043835,120]
[393042969,1762241899597,-584.04141768,0.00043835,120]
[393042970,1762241899654,-593.85972362,0.00043835,120]
[393042971,1762241899711,-503.97300454,0.00043835,120]
[393042972,1762241899766,-500.0,0.00043835,120]
[393042973,1762241899822,-529.54973056,0.00043835,120]
[393042974,1762241899878,-500.0,0.00043835,120]
[393042975,1762241899935,-505.15892699,0.00043835,100]
[393042976,1762241899993,-504.0250236,0.00043835,120]
[393042977,1762241900050,-500.0,0.00043835,120]
[393042978,1762241900106,-503.97771499,0.00043835,120]
[393042979,1762241900162,-500.0,0.00043835,120]
[393042980,1762241900217,-500.0,0.00043835,120]
[393042981,1762241900273,-500.0,0.00043835,120]
[393042982,1762241900328,-502.91832883,0.00043835,120]
[393042983,1762241900382,-500.0,0.00043835,120]
[393042984,1762241900436,-560.36594912,0.00043835,120]
[393042985,1762241900491,-500.0,0.00043835,120]
[393042986,1762241900549,-808.89,0.00043835,120]
[393042987,1762241900744,-500.0,0.00043835,120]
[393042988,1762241900800,-501.41264565,0.00043835,120]
[393042989,1762241900859,-500.0,0.00043835,120]
[393042990,1762241900913,-525.02269119,0.00043835,120]
[393042991,1762241900969,-552.64942276,0.00043835,120]
[393042992,1762241901023,-500.0,0.00043835,120]
[393042993,1762241901075,-500.0,0.00043835,120]
[393042994,1762241901130,-500.0,0.00043835,120]
[393042995,1762241901182,-500.0,0.00043835,120]
[393042996,1762241901238,-500.0,0.00043835,120]
[393042997,1762241901292,-500.0,0.00043835,120]
[393042998,1762241901346,-506.41057075,0.00043835,120]
[393042999,1762241901398,-500.0,0.00043835,120]
[393043000,1762241901453,-500.0,0.00043835,120]
[393043001,1762241901508,-500.0,0.00043835,120]
[393043002,1762241901562,-500.0,0.00043835,120]
[393043003,1762241901616,-218.92978707,0.00043835,120]
[393043004,1762241901671,-504.47988162,0.00043835,120]
[393043005,1762241901727,-500.0,0.00043835,120]
[393043006,1762241901780,-504.33224876,0.00043835,120]
[393043007,1762241901834,-500.0,0.00043835,120]
[393043008,1762241901892,-500.65986861,0.00043835,120]
[393043009,1762241901946,-632.15573507,0.00043835,120]
[393043010,1762241901998,-500.0,0.00043835,120]
[393043011,1762241902049,-505.45948406,0.00043835,120]
[393043012,1762241902101,-500.0,0.00043835,120]
[393043013,1762241902155,-500.0,0.00043835,120]
[393043014,1762241902205,-483.78661264,0.00043835,120]
[393043015,1762241902257,-500.0,0.00043835,120]
[393043016,1762241902310,-500.0,0.00043835,120]
[393043017,1762241902364,-500.0,0.00043835,120]
[393043018,1762241902418,-503.93054326,0.00043835,120]
[393043019,1762241902471,-500.0,0.00043835,120]
[393043020,1762241902527,-500.0,0.00043835,120]
[393043021,1762241902582,-500.0,0.00043835,120]
[393043022,1762241902635,-500.0,0.00043835,120]
[393043023,1762241902688,-500.0,0.00043835,120]
[393043024,1762241902744,-500.0,0.00043835,120]
[393043025,1762241902805,-500.0,0.00043835,120]
[393043026,1762241902859,-500.0,0.00043835,120]
[393043027,1762241902909,-503.06456345,0.00043835,120]
[393043028,1762241902960,-500.0,0.00043835,120]
[393043029,1762241903013,-500.0,0.00043835,120]
[393043030,1762241903065,-500.0,0.00043835,120]
[393043031,1762241903116,-500.0,0.00043835,120]
[393043032,1762241903169,-500.0,0.00043835,120]
[393043033,1762241903224,-500.0,0.00043835,120]
[393043034,1762241903277,-500.0,0.00043835,120]
[393043035,1762241903331,-500.0,0.00043835,120]
[393043036,1762241903383,-500.0,0.00043835,120]
[393043037,1762241903439,-500.0,0.00043835,120]
[393043038,1762241903489,-500.0,0.00043835,120]
[393043039,1762241903546,-500.0,0.00043835,120]
[393043040,1762241903603,-500.0,0.00043835,120]
[393043041,1762241903661,-500.0,0.00043835,120]
[393043042,1762241903719,-500.0,0.00043835,120]
[393043043,1762241903787,-505.69842239,0.00043835,120]
[393043044,1762241903846,-500.0,0.00043835,120]
[393043045,1762241903903,-500.0,0.00043835,120]
[393043046,1762241903959,-500.0,0.00043835,120]
[393043047,1762241904016,-500.0,0.00043835,120]
[393043048,1762241904070,-500.0,0.00043835,120]
[393043049,1762241904125,-500.0,0.00043835,120]
[393043050,1762241904181,-500.0,0.00043835,120]
[393043051,1762241904237,-500.0,0.00043835,120]
[393043052,1762241904294,-500.0,0.00043835,120]
[393043053,1762241904350,-500.0,0.00043835,120]
[393043054,1762241904405,-509.87145516,0.00043835,120]
[393043055,1762241904462,-507.489009,0.00043835,120]
[393043056,1762241904518,-500.0,0.00043835,120]
[393043057,1762241904573,-500.0,0.00043835,120]
[393043058,1762241904631,-500.0,0.00043835,120]
[393043059,1762241904686,-500.0,0.00043835,120]
[393043060,1762241904745,-500.0,0.00043835,120]
[393043061,1762241904802,-500.0,0.00043835,120]
[393043062,1762241904858,-500.0,0.00043835,120]
[393043063,1762241904914,-500.0,0.00043835,120]
[393043064,1762241904969,-500.0,0.00043835,120]
[393043065,1762241905025,-500.0,0.00043835,120]
[393043066,1762241905079,-500.0,0.00043835,120]
[393043067,1762241905132,-503.39828873,0.00043835,120]
[393043068,1762241905184,-500.0,0.00043835,120]
[393043069,1762241905238,-500.0,0.00043835,120]
[393043070,1762241905294,-500.0,0.00043835,120]
[393043071,1762241905353,-500.0,0.00043835,120]
[393043072,1762241905411,-500.0,0.00043835,120]
[393043073,1762241905470,-524.55989676,0.00043835,120]
[393043074,1762241905528,-500.0,0.00043835,120]
[393043075,1762241905590,-500.0,0.00043835,120]
[393043076,1762241905650,-500.0,0.00043835,120]
[393043077,1762241905708,-500.0,0.00043835,120]
[393043078,1762241905767,-500.0,0.00043835,120]
[393043079,1762241905826,-500.0,0.00043835,120]
[393043080,1762241905889,-500.0,0.00043835,120]
[393043081,1762241905948,-500.0,0.00043835,120]
[393043082,1762241906007,-500.0,0.00043835,120]
[393043083,1762241906064,-500.0,0.00043835,120]
[393043084,1762241906123,-500.0,0.00043835,120]
[393043085,1762241906180,-500.0,0.00043835,120]
[393043086,1762241906238,-341.62641381,0.00043835,120]
[393043087,1762241906295,-500.0,0.00043835,120]
[393043088,1762241906354,-500.0,0.00043835,120]
[393043089,1762241906412,-500.0,0.00043835,120]
[393043090,1762241906470,-500.0,0.00043835,120]
[393043091,1762241906682,-500.0,0.00043835,120]
[393043092,1762241906743,-500.0,0.00043835,120]
[393043093,1762241906811,-500.0,0.00043835,120]
[393043094,1762241906878,-500.0,0.00043835,120]
[393043095,1762241906941,-500.0,0.00043835,120]
[393043096,1762241906998,-500.0,0.00043835,120]
[393043097,1762241907054,-503.8834347,0.00043835,120]
[393043098,1762241907108,-503.11731516,0.00043835,120]
[393043099,1762241907162,-520.6910366,0.00043835,120]
[393043100,1762241907214,-500.0,0.00043835,120]
[393043101,1762241907268,-500.0,0.00043835,120]
[393043102,1762241907323,-1486.47,0.00043835,120]
[393043103,1762241907377,-500.0,0.00043835,120]
[393043104,1762241907435,-500.0,0.00043835,120]
[393043105,1762241907491,-504.57237686,0.00043835,120]
[393043106,1762241907549,-514.31837403,0.00043835,120]
[393043107,1762241907608,-500.0,0.00043835,120]
[393043108,1762241907664,-500.0,0.00043835,120]
[393043109,1762241907723,-500.0,0.00043835,120]
[393043110,1762241907783,-500.0,0.00043835,120]
[393043111,1762241907843,-500.0,0.00043835,120]
[393043112,1762241907903,-500.0,0.00043835,60]
[393043113,1762241907961,-500.0,0.00043835,120]
[393043114,1762241908015,-503.2700724,0.00043835,120]
[393043115,1762241908073,-500.0,0.00043835,120]
[393043116,1762241908132,-500.0,0.00043835,120]
[393043117,1762241908187,-500.0,0.00043835,120]
[393043118,1762241908245,-501.17752494,0.00043835,120]
[393043119,1762241908300,-500.0,0.00043835,120]
[393043120,1762241908357,-500.0,0.00043835,120]
[393043121,1762241908415,-500.0,0.00043835,120]
[393043122,1762241908472,-500.0,0.00043835,120]
[393043123,1762241908529,-500.0,0.00043835,120]
[393043124,1762241908586,-500.0,0.00043835,120]
[393043125,1762241908647,-500.0,0.00043835,120]
[393043126,1762241908705,-500.0,0.00043835,120]
[393043127,1762241908761,-500.0,0.00043835,120]
[393043128,1762241908816,-500.0,0.00043835,120]
[393043129,1762241908872,-630.50707205,0.00043835,120]
[393043130,1762241908929,-368.775645,0.00043835,120]
[393043131,1762241908985,-501.66156065,0.00043835,120]
[393043132,1762241909041,-500.0,0.00043835,120]
[393043133,1762241909097,-500.0,0.00043835,120]
[393043134,1762241909156,-500.0,0.00043835,120]
[393043135,1762241909210,-500.0,0.00043835,120]
[393043136,1762241909266,-500.0,0.00043835,120]
[393043137,1762241909322,-500.0,0.00043835,120]
[393043138,1762241909377,-525.31318761,0.00043835,120]
[393043139,1762241909432,-500.0,0.00043835,120]
[393043140,1762241909486,-500.0,0.00043835,120]
[393043141,1762241909541,-503.58081507,0.00043835,120]
[393043142,1762241909600,-500.0,0.00043835,120]
[393043143,1762241909656,-500.0,0.00043835,120]
[393043144,1762241909711,-500.0,0.00043835,120]
[393043145,1762241909767,-500.0,0.00043835,120]
[393043146,1762241909820,-500.0,0.00043835,120]
[393043147,1762241909875,-500.0,0.00043835,120]
[393043148,1762241909932,-500.0,0.00043835,120]
[393043149,1762241909987,-500.0,0.00043835,120]
[393043150,1762241910042,-503.96323365,0.00043835,120]
[393043151,1762241910097,-500.0,0.00043835,120]
[393043152,1762241910151,-500.0,0.00043835,120]
[393043153,1762241910205,-500.0,0.00043835,120]
[393043154,1762241910265,-500.0,0.00043835,120]
[393043155,1762241910320,-500.0,0.00043835,120]
[393043156,1762241910373,-500.0,0.00043835,120]
[393043157,1762241910427,-521.28457197,0.00043835,120]
[393043158,1762241910480,-503.45449858,0.00043835,120]
[393043159,1762241910537,-500.0,0.00043835,120]
[393043160,1762241910592,-506.50993344,0.00043835,120]
[393043161,1762241910645,-500.0,0.00043835,120]
[393043162,1762241910699,-517.74512747,0.00043835,120]
[393043163,1762241910754,-507.98288154,0.00043835,120]
[393043164,1762241910809,-500.0,0.00043835,120]
[393043165,1762241910864,-500.0,0.00043835,120]
[393043166,1762241910917,-565.64223058,0.00043835,120]
[393043167,1762241910971,-504.29450723,0.00043835,120]
[393043168,1762241911024,-500.0,0.00043835,120]
[393043169,1762241911077,-500.0,0.00043835,120]
[393043170,1762241911130,-500.0,0.00043835,120]
[393043171,1762241911184,-509.0856737,0.00043835,120]
[393043172,1762241911238,-500.0,0.00043835,120]
[393043173,1762241911292,-505.65382153,0.00043835,120]
[393043174,1762241911349,-500.0,0.00043835,120]
[393043175,1762241911401,-500.0,0.00043835,30]
[393043176,1762241911458,-510.22124104,0.00043835,120]
[393043177,1762241911514,-500.0,0.00043835,120]
[393043178,1762241911570,-502.67575334,0.00043835,120]
[393043179,1762241911627,-507.04633193,0.00043835,120]
[393043180,1762241911682,-500.0,0.00043835,120]
[393043181,1762241911740,-500.0,0.00043835,120]
[393043182,1762241911797,-500.0,0.00043835,120]
[393043183,1762241911854,-500.0,0.00043835,120]
[393043184,1762241911910,-501.66392557,0.00043835,120]
[393043185,1762241911966,-503.75966402,0.00043835,120]
[393043186,1762241912023,-532.2964439,0.00043835,120]
[393043187,1762241912077,-502.5144412,0.00043835,120]
[393043188,1762241912141,-511.25116279,0.00043835,120]
[393043189,1762241912202,-500.0,0.00043835,120]
[393043190,1762241912259,-500.0,0.00043835,120]
[393043191,1762241912313,-500.0,0.00043835,120]
[393043192,1762241912369,-640.66,0.00043835,120]
[393043193,1762241912425,-529.54147635,0.00043835,120]
[393043194,1762241912481,-500.0,0.00043835,120]
[393043195,1762241912684,-507.16206412,0.00043835,120]
[393043196,1762241912742,-500.0,0.00043835,120]
[393043197,1762241912799,-494.62282398,0.00043835,120]
[393043198,1762241912856,-500.0,0.00043835,120]
[393043199,1762241912911,-500.0,0.00043835,120]
[393043200,1762241912969,-500.0,0.00043835,120]
[393043201,1762241913031,-500.0,0.00043835,30]
[393043202,1762241913092,-500.0,0.00043835,120]
[393043203,1762241913154,-500.0,0.00043835,120]
[393043204,1762241913215,-500.0,0.00043835,120]
[393043205,1762241913275,-500.0,0.00043835,120]
[393043206,1762241913334,-500.0,0.00043835,120]
[393043207,1762241913396,-500.0,0.00043835,120]
[393043208,1762241913454,-500.0,0.00043835,120]
[393043209,1762241913517,-500.0,0.00043835,120]
[393043210,1762241913578,-500.0,0.00043835,60]
[393043211,1762241913638,-500.0,0.00043835,120]
[393043212,1762241913697,-500.0,0.00043835,120]
[393043213,1762241913757,-505.69211896,0.00043835,120]
[393043214,1762241913817,-500.0,0.00043835,120]
[393043215,1762241913877,-511.22923535,0.00043835,120]
[393043216,1762241913935,-500.0,0.00043835,120]
[393043217,1762241913994,-500.0,0.00043835,120]
[393043218,1762241914051,-500.0,0.00043835,120]
[393043219,1762241914108,-500.0,0.00043835,120]
[393043220,1762241914168,-500.0,0.00043835,120]
[393043221,1762241914226,-503.73337862,0.00043835,120]
[393043222,1762241914283,-500.0,0.00043835,120]
[393043223,1762241914341,-500.0,0.00043835,120]
[393043224,1762241914398,-507.30271274,0.00043835,120]
[393043225,1762241914458,-500.0,0.00043835,120]
[393043226,1762241914514,-500.0,0.00043835,120]
[393043227,1762241914571,-500.0,0.00043835,120]
[393043228,1762241914627,-500.0,0.00043835,120]
[393043229,1762241914690,-500.0,0.00043835,120]
[393043230,1762241914749,-500.0,0.00043835,120]
[393043231,1762241914807,-500.0,0.00043835,120]
[393043232,1762241914865,-500.0,0.00043835,120]
[393043233,1762241914923,-500.0,0.00043835,120]
[393043234,1762241914982,-500.0,0.00043835,120]
[393043235,1762241915041,-500.0,0.00043835,120]
[393043236,1762241915100,-500.0,0.00043835,120]
[393043237,1762241915158,-500.0,0.00043835,120]
[393043238,1762241915216,-500.0,0.00043835,120]
[393043239,1762241915272,-500.0,0.00043835,120]
[393043240,1762241915329,-500.0,0.00043835,120]
[393043241,1762241915384,-504.38843627,0.00043835,120]
[393043242,1762241915441,-500.0,0.00043835,120]
[393043243,1762241915497,-500.0,0.00043835,120]
[393043244,1762241915553,-517.95913778,0.00043835,120]
[393043245,1762241915608,-479.40234745,0.00043835,120]
[393043246,1762241915663,-500.0,0.00043835,120]
[393043247,1762241915717,-504.26974602,0.00043835,120]
[393043248,1762241915772,-500.0,0.00043835,120]
[393043249,1762241915828,-500.0,0.00043835,120]
[393043250,1762241915886,-500.0,0.00043835,120]
[393043251,1762241915942,-509.90769076,0.00043835,120]
[393043252,1762241915998,-503.14278176,0.00043835,120]
[393043253,1762241916056,-522.84334624,0.00043835,120]
[393043254,1762241916112,-151.0,0.00043835,30]
[393043255,1762241916168,-504.62764579,0.00043835,120]
[393043256,1762241916224,-500.0,0.00043835,120]
[393043257,1762241916451,507.8102119,0.00043835,120]
[393043258,1762241916513,510.80639992,0.00043835,120]
[393043259,1762241916593,654.946827,0.0004,120]
[393043260,1762241916655,654.946827,0.000421,120]
[393043261,1762241916751,654.946827,0.00043735,120]
[393043262,1762241916815,654.946827,0.00043835,120]
[393043263,1762241916879,510.04190958,0.00043835,120]
[393043264,1762241916973,654.946827,0.0004,120]
[393043265,1762241917039,654.946827,0.000421,120]
[393043266,1762241917103,654.946827,0.00043735,120]
[393043267,1762241917174,654.946827,0.00043835,120]
[393043268,1762241917247,654.946827,0.0004,120]
[393043269,1762241917316,654.946827,0.000421,120]
[393043270,1762241917385,654.946827,0.00043735,120]
[393043271,1762241917451,654.946827,0.00043835,120]
[393043272,1762241917514,500.0,0.00043835,120]
[393043273,1762241917582,654.946827,0.0004,120]
[393043274,1762241917643,654.946827,0.000421,120]
[393043275,1762241917704,654.946827,0.00043735,120]
[393043276,1762241917765,654.946827,0.00043835,120]
[393043277,1762241917840,500.0,0.00043835,120]
[393043278,1762241917938,500.0,0.00043835,120]
[393043279,1762241918169,500.0,0.00043835,120]
[393043280,1762241918240,196.77148052,0.000372,120]
[393043281,1762241918324,510.64299986,0.00043835,120]
[393043282,1762241918387,503.11807876,0.00043835,120]
[393043283,1762241918460,507.03629797,0.00043835,120]
[393043284,1762241918530,500.0,0.00043835,120]
[393043285,1762241918605,503.42469184,0.00043835,120]
[393043286,1762241918680,500.0,0.00043835,120]
[393043287,1762241918744,503.93846725,0.00043835,120]
[393043288,1762241919059,503.03320892,0.00043835,120]
[393043289,1762241919319,500.0,0.00043835,120]
[393043290,1762241919380,500.0,0.00043835,120]
[393043291,1762241919443,604.91835053,0.00043835,120]
[393043292,1762241919513,604.95239536,0.00043835,120]
[393043293,1762241919634,501.85752598,0.00043835,120]
[393043294,1762241919728,516.2539223,0.00043835,120]
[393043295,1762241919806,509.04044267,0.00043835,120]
[393043296,1762241919906,500.0,0.00043835,120]
[393043297,1762241919970,500.0,0.00043835,120]
[393043298,1762241920030,504.38240221,0.00043835,120]
[393043299,1762241920119,620.60998794,0.00043616,54]
[393043300,1762241920214,150.22,0.0003468,60]
[393043301,1762241920285,150.22,0.0003488,60]
[393043302,1762241920350,150.22,0.0003478,60]
[393043303,1762241920425,150.22,0.0003498,60]
[393043304,1762241920490,150.22,0.0003518,60]
[393043305,1762241920552,151.0,0.0003989,30]
[393043306,1762241920635,150.22,0.0003538,60]
[393043307,1762241920698,150.22,0.0003548,60]
[393043308,1762241920762,151.0,0.00039945,30]
[393043309,1762241920824,150.22,0.0003558,60]
[393043310,1762241920885,150.22,0.0003568,60]
[393043311,1762241920948,150.22,0.0003578,60]
[393043312,1762241921010,150.22,0.0003588,60]
[393043313,1762241921070,150.23,0.0003598,60]
[393043314,1762241921131,151.0,0.0003989,30]
[393043315,1762241921201,151.0,0.00039945,30]
[393043316,1762241921304,150.22,0.0003508,60]
[393043317,1762241921366,500.0,0.00043835,120]
[393043318,1762241921424,213.97099005,0.0003989,30]
[393043319,1762241921486,150.22,0.0003528,60]
[393043320,1762241921547,150.22,0.0003458,60]
[393043321,1762241921607,151.65582355,0.0003989,30]
[393043322,1762241921667,151.0,0.0003989,30]
[393043323,1762241921726,151.0,0.00039945,30]
[393043324,1762241921785,151.0,0.0003989,30]
[393043325,1762241921842,151.0,0.00039945,30]
[393043326,1762241921915,151.0,0.0003989,30]
[393043327,1762241921969,176.52977833,0.00039945,30]
[393043328,1762241922028,151.0,0.0003989,30]
[393043329,1762241922083,151.0,0.00039945,30]
[393043330,1762241922139,151.0,0.0003989,30]
[393043331,1762241922193,151.0,0.00039945,30]
[393043332,1762241922248,151.0,0.0004,30]
[393043333,1762241922308,151.0,0.00040054,30]
[393043334,1762241922367,151.0,0.00040109,30]
[393043335,1762241922428,245.0,0.00040164,30]
[393043336,1762241922490,521.64857891,0.00043835,120]
[393043337,1762241922565,500.0,0.00043835,120]
[393043338,1762241922627,208.08428539,0.0003989,30]
[393043339,1762241922693,151.0,0.0003989,30]
[393043340,1762241922754,151.0,0.00039945,30]
[393043341,1762241922814,151.0,0.0003989,30]
[393043342,1762241922877,151.0,0.00039945,30]
[393043343,1762241922937,503.30740767,0.00043835,120]
[393043344,1762241922994,151.0,0.0003989,30]
[393043345,1762241923135,151.0,0.00039945,30]
[393043346,1762241923219,151.0,0.0004,30]
[393043347,1762241923279,151.0,0.00040054,30]
[393043348,1762241923340,151.0,0.00040109,30]
[393043349,1762241923400,245.0,0.00040164,30]
[393043350,1762241923461,195.58478536,0.000372,120]
[393043351,1762241923521,500.38410638,0.00043835,120]
[393043352,1762241923582,208.5332635,0.0003989,30]
[393043353,1762241923644,195.58478536,0.000383,120]
[393043354,1762241923707,500.0,0.00043835,120]
[393043355,1762241923771,195.58478536,0.000395,120]
[393043356,1762241923834,151.0,0.0003989,30]
[393043357,1762241923912,505.18681738,0.00043835,120]
[393043358,1762241923972,500.0,0.00043835,120]
[393043359,1762241924687,502.04159352,0.00043835,120]
[393043360,1762241924753,500.0,0.00043835,120]
[393043361,1762241924812,500.0,0.00043835,120]
[393043362,1762241924975,409.73842824,0.00043835,120]
[393043363,1762241925040,503.76371848,0.00043835,120]
[393043364,1762241925098,1888.0,0.00043836,30]
[393043365,1762241925159,500.0,0.00043836,30]
[393043366,1762241925218,151.0,0.00043836,30]
[393043367,1762241925275,160.0,0.00043836,30]
[393043368,1762241925335,1000.0,0.00043836,30]
[393043369,1762241925399,151.0,0.00043836,30]
[393043370,1762241925455,231.49080901,0.00043836,30]
[393043371,1762241925514,500.0,0.00043835,120]
[393043372,1762241925572,500.0,0.00043836,30]
[393043373,1762241925636,300.0,0.00043836,30]
[393043374,1762241925717,160.0,0.00043836,30]
[393043375,1762241925777,151.0,0.00043836,30]
[393043376,1762241925836,1000.0,0.00043836,30]
[393043377,1762241925899,151.0,0.00043836,30]
[393043378,1762241925955,20000.0,0.00043836,30]
[393043379,1762241926062,151.0,0.00043836,30]
[393043380,1762241926121,500.0,0.00043836,30]
[393043381,1762241926184,160.0,0.00043836,30]
[393043382,1762241926241,1000.0,0.00043836,30]
[393043383,1762241926299,300.0,0.00043836,30]
[393043384,1762241926356,151.0,0.00043836,30]
[393043385,1762241926475,500.0,0.00043835,120]
[393043386,1762241926535,151.0,0.00043836,30]
[393043387,1762241926596,20740.0,0.00043836,30]
[393043388,1762241926653,151.0,0.00043836,30]
[393043389,1762241926718,500.0,0.00043835,120]
[393043390,1762241926784,500.0,0.00043836,30]
[393043391,1762241926842,1000.0,0.00043836,30]
[393043392,1762241926905,160.0,0.00043836,30]
[393043393,1762241926959,151.0,0.00043836,30]
[393043394,1762241927013,300.0,0.00043836,30]
[393043395,1762241927066,21507.38,0.00043836,30]
[393043396,1762241927120,151.0,0.00043836,30]
[393043397,1762241927173,151.0,0.00043836,30]
[393043398,1762241927229,500.0,0.00043836,30]
[393043399,1762241927284,500.0,0.00043835,120]
[393043400,1762241927339,1000.0,0.00043836,30]
[393043401,1762241927399,160.0,0.00043836,30]
[393043402,1762241927459,300.0,0.00043836,30]
[393043403,1762241927519,151.0,0.00043836,30]
[393043404,1762241927812,22303.15306,0.00043836,30]
[393043405,1762241927871,151.0,0.00043836,30]
[393043406,1762241927937,151.0,0.00043836,30]
[393043407,1762241927995,500.0,0.00043836,30]
[393043408,1762241928058,160.0,0.00043836,30]
[393043409,1762241928120,151.0,0.00043836,30]
[393043410,1762241928183,1000.0,0.00043836,30]
[393043411,1762241928249,300.0,0.00043836,30]
[393043412,1762241928312,23128.36972322,0.00043836,30]
[393043413,1762241928374,151.0,0.00043836,30]
[393043414,1762241928434,208.24240105,0.00043836,30]
[393043415,1762241928495,500.0,0.00043836,30]
[393043416,1762241928555,160.0,0.00043836,30]
[393043417,1762241928618,355.65109133,0.00043836,30]
[393043418,1762241928681,151.0,0.00043836,30]
[393043419,1762241928742,1000.0,0.00043836,30]
[393043420,1762241928802,6209.61140785,0.00043836,30]
[393043421,1762241928870,151.0,0.00043836,30]
[393043422,1762241928931,500.0,0.00043836,30]
[393043423,1762241928991,216.6897272,0.00043836,30]
[393043424,1762241929060,1000.0,0.00043836,30]
[393043425,1762241929122,151.0,0.00043836,30]
[393043426,1762241929189,151.0,0.00043836,30]
[393043427,1762241929250,500.0,0.00043836,30]
[393043428,1762241929307,515.3319173,0.00043835,120]
[393043429,1762241929364,151.0,0.00043836,30]
[393043430,1762241929421,1000.0,0.00043836,30]
[393043431,1762241929485,500.0,0.00043835,120]
[393043432,1762241929545,151.0,0.00043836,30]
[393043433,1762241929605,500.0,0.00043836,30]
[393043434,1762241929747,151.0,0.00043836,30]
[393043435,1762241929808,1000.0,0.00043836,30]
[393043436,1762241929870,246.77502198,0.00043836,30]
[393043437,1762241929935,1000.0,0.00043836,30]
[393043438,1762241929997,604.71000767,0.00043835,120]
[393043439,1762241930057,151.0,0.00043836,30]
[393043440,1762241930135,1000.0,0.00043836,30]
[393043441,1762241930192,151.0,0.00043836,30]
[393043442,1762241930252,1000.0,0.00043836,30]
[393043443,1762241930311,151.0,0.00043836,30]
[393043444,1762241930369,559.00588212,0.00043836,30]
[393043445,1762241930427,176.45126674,0.0003732,120]
[393043446,1762241930485,151.0,0.00043836,30]
[393043447,1762241930602,151.0,0.00043836,30]
[393043448,1762241930661,151.0,0.00043836,30]
[393043449,1762241930759,156.587,0.00043836,30]
[393043450,1762241930821,151.0,0.00043836,30]
[393043451,1762241930886,225.71397398,0.00043836,30]
[393043452,1762241930977,151.0,0.00043836,30]
[393043453,1762241931423,161.99901092,0.00043836,30]
[393043454,1762241931562,500.0,0.00043835,120]
[393043455,1762241931739,250.0,0.00043836,30]
[393043456,1762241931879,378.81751576,0.00041096,31]
[393043457,1762241932017,506.27950803,0.00043835,120]
[393043458,1762241932489,250.0,0.00043836,30]
[393043459,1762241933115,250.0,0.00043836,30]
[393043460,1762241933186,534.09980026,0.00043835,120]